fUST/lending_fUST_20250704
["ID","MTS","AMOUNT","RATE_DAILY","PERIOD"]
[369559892,1751622645063,-151.0,0.00016438,2]
[369559893,1751622645073,-197.422233,0.00016438,2]
[369559895,1751622645082,-460.0,0.00016438,2]
[369559897,1751622645092,-460.0,0.00016438,2]
[369559899,1751622645101,-154.553503,0.00016438,2]
[369559900,1751622645111,-822.29,0.00016438,2]
[369559902,1751622645120,-460.0,0.00016438,2]
[369559904,1751622645130,-180.0,0.00016438,2]
[369559906,1751622645139,-151.0,0.00016438,2]
[369559908,1751622645149,-151.0,0.00016438,2]
[369559909,1751622645158,-151.0,0.00016438,2]
[369559911,1751622645167,-151.0,0.00016438,2]
[369559913,1751622645177,-151.0,0.00016438,2]
[369559915,1751622645186,-834.14,0.00016438,2]
[369559916,1751622645196,-151.0,0.00016438,2]
[369559918,1751622645205,-151.0,0.00016438,2]
[369559920,1751622645214,-151.0,0.00016438,2]
[369559921,1751622645223,-151.0,0.00016438,2]
[369559923,1751622645232,-463.55864156,0.00016438,2]
[369559925,1751622645242,-460.0,0.00016438,2]
[369559927,1751622645251,-460.0,0.00016438,2]
[369559929,1751622645261,-460.0,0.00016438,2]
[369559930,1751622645270,-512.10241533,0.00016438,2]
[369559932,1751622645280,-460.0,0.00016438,2]
[369559934,1751622645289,-480.78884114,0.00016438,2]
[369559936,1751622645298,-460.0,0.00016438,2]
[369559937,1751622645310,-460.0,0.00016438,2]
[369559939,1751622645319,-463.27245912,0.00016438,2]
[369559941,1751622645329,-460.0,0.00016438,2]
[369559943,1751622645338,-460.0,0.00016438,2]
[369559944,1751622645347,-460.0,0.00016438,2]
[369559946,1751622645357,-460.0,0.00016438,2]
[369559948,1751622645367,-329.88907058,0.00016438,2]
[369559950,1751622645376,-460.0,0.00016438,2]
[369559951,1751622645386,-460.0,0.00016438,2]
[369559953,1751622645395,-460.0,0.00016438,2]
[369559955,1751622645404,-1004.886178,0.00016438,2]
[369559956,1751622645414,-1004.886178,0.00016438,2]
[369559958,1751622645424,-1004.886178,0.00016438,2]
[369559960,1751622645433,-1004.886178,0.00016438,2]
[369559962,1751622645443,-1004.886178,0.00016438,2]
[369559964,1751622645454,-597.41322904,0.00016438,2]
[369559965,1751622645463,-1004.886178,0.00016438,2]
[369559967,1751622645472,-1004.886178,0.00016438,2]
[369559969,1751622645482,-1004.886178,0.00016438,2]
[369559971,1751622645491,-1004.886178,0.00016438,2]
[369559972,1751622645500,-1004.886178,0.00016438,2]
[369559974,1751622645509,-312.1468531,0.00016438,2]
[369559976,1751622645518,-460.0,0.00016438,2]
[369559978,1751622645528,-460.0,0.00016438,2]
[369559979,1751622645538,-460.0,0.00016438,2]
[369559981,1751622645547,-460.0,0.00016438,2]
[369559983,1751622645556,-460.0,0.00016438,2]
[369559985,1751622645566,-460.0,0.00016438,2]
[369559986,1751622645575,-460.0,0.00016438,2]
[369559988,1751622645584,-460.0,0.00016438,2]
[369559990,1751622645594,-460.0,0.00016438,2]
[369559992,1751622645604,-460.0,0.00016438,2]
[369559993,1751622645613,-460.0,0.00016438,2]
[369559995,1751622645623,-460.0,0.00016438,2]
[369559997,1751622645633,-986.97,0.00016438,2]
[369559999,1751622645646,-464.98179583,0.00016438,2]
[369560001,1751622645659,-460.0,0.00016438,2]
[369560002,1751622645674,-460.0,0.00016438,2]
[369560004,1751622645684,-609.0116226,0.00016438,2]
[369560006,1751622645694,-460.0,0.00016438,2]
[369560008,1751622645704,-460.0,0.00016438,2]
[369560009,1751622645713,-460.0,0.00016438,2]
[369560011,1751622645722,-460.0,0.00016438,2]
[369560013,1751622645733,-460.0,0.00016438,2]
[369560015,1751622645743,-460.0,0.00016438,2]
[369560016,1751622645752,-151.0,0.00016438,2]
[369560018,1751622645761,-151.0,0.00016438,2]
[369560020,1751622645771,-268.18747,0.00016438,2]
[369560022,1751622645781,-462.37,0.00016438,2]
[369560023,1751622645790,-460.0,0.00016438,2]
[369560025,1751622645800,-460.0,0.00016438,2]
[369560027,1751622645810,-672.42,0.00016438,2]
[369560029,1751622645820,-474.48766616,0.00016438,2]
[369560031,1751622645830,-151.0,0.00016438,2]
[369560032,1751622645839,-1030.62,0.00016438,2]
[369560034,1751622645849,-151.0,0.00016438,2]
[369560036,1751622645860,-151.0,0.00016438,2]
[369560038,1751622645870,-460.0,0.00016438,2]
[369560040,1751622645880,-1162.38,0.00016438,2]
[369560041,1751622645889,-465.50186028,0.00016438,2]
[369560043,1751622645898,-460.0,0.00016438,2]
[369560045,1751622645908,-460.0,0.00016438,2]
[369560047,1751622645921,-460.0,0.00016438,2]
[369560049,1751622645932,-460.0,0.00016438,2]
[369560050,1751622645941,-460.0,0.00016438,2]
[369560052,1751622645951,-151.0,0.00016438,2]
[369560054,1751622645960,-151.0,0.00016438,2]
[369560056,1751622645970,-151.0,0.00016438,2]
[369560058,1751622645979,-172.672405,0.00016438,2]
[369560059,1751622645989,-460.0,0.00016438,2]
[369560061,1751622645998,-460.0,0.00016438,2]
[369560063,1751622646007,-460.0,0.00016438,2]
[369560065,1751622646017,-460.0,0.00016438,2]
[369560066,1751622646027,-460.0,0.00016438,2]
[369560068,1751622646036,-460.0,0.00016438,2]
[369560070,1751622646046,-460.0,0.00016438,2]
[369560072,1751622646056,-460.0,0.00016438,2]
[369560073,1751622646065,-470.28413226,0.00016438,2]
[369560075,1751622646074,-500.0,0.00016438,2]
[369560077,1751622646084,-1036.43,0.00016438,2]
[369560079,1751622646094,-5342.47,0.00016438,2]
[369560081,1751622646103,-822.14,0.00016438,2]
[369560082,1751622646112,-150.8355033,0.00016438,2]
[369560084,1751622646121,-729.28,0.00016438,2]
[369560086,1751622646130,-460.0,0.00016438,2]
[369560087,1751622646139,-460.0,0.00016438,2]
[369560089,1751622646149,-460.0,0.00016438,2]
[369560091,1751622646158,-460.0,0.00016438,2]
[369560093,1751622646168,-460.0,0.00016438,2]
[369560095,1751622646177,-1594.57,0.00016438,2]
[369560096,1751622646186,-1820.55,0.00016438,2]
[369560098,1751622646196,-460.0,0.00016438,2]
[369560100,1751622646205,-460.0,0.00016438,2]
[369560101,1751622646214,-1664.52,0.00016438,2]
[369560103,1751622646223,-151.0,0.00016438,2]
[369560105,1751622646233,-151.0,0.00016438,2]
[369560107,1751622646242,-151.0,0.00016438,2]
[369560109,1751622646251,-151.0,0.00016438,2]
[369560111,1751622646260,-151.0,0.00016438,2]
[369560113,1751622646270,-181.76136,0.00016438,2]
[369560115,1751622646279,-460.0,0.00016438,2]
[369560117,1751622646288,-460.0,0.00016438,2]
[369560119,1751622646298,-460.0,0.00016438,2]
[369560121,1751622646307,-460.0,0.00016438,2]
[369560122,1751622646317,-1384.19,0.00016438,2]
[369560123,1751622646326,-460.0,0.00016438,2]
[369560124,1751622646336,-460.0,0.00016438,2]
[369560125,1751622646346,-460.0,0.00016438,2]
[369560126,1751622646355,-2116.5,0.00016438,2]
[369560127,1751622646365,-460.0,0.00016438,2]
[369560128,1751622646374,-151.897169,0.00016438,2]
[369560129,1751622646384,-462.17247759,0.00016438,2]
[369560131,1751622646394,-460.0,0.00016438,2]
[369560133,1751622646403,-198.34,0.00016438,2]
[369560135,1751622646412,-3633.5,0.00016438,2]
[369560136,1751622646421,-460.0,0.00016438,2]
[369560137,1751622646430,-291.83821086,0.00016438,2]
[369560138,1751622646439,-460.0,0.00016438,2]
[369560139,1751622646448,-2625.22,0.00016438,2]
[369560140,1751622646458,-1234.04,0.00016438,2]
[369560141,1751622646467,-511.32,0.00016438,2]
[369560142,1751622646477,-4684.85,0.00016438,2]
[369560143,1751622646486,-460.0,0.00016438,2]
[369560144,1751622646495,-460.0,0.00016438,2]
[369560145,1751622646504,-460.0,0.00016438,2]
[369560146,1751622646514,-992.43,0.00016438,2]
[369560147,1751622646523,-460.0,0.00016438,2]
[369560148,1751622646532,-460.0,0.00016438,2]
[369560149,1751622646541,-1182.12,0.00016438,2]
[369560150,1751622646551,-979.7,0.00016438,2]
[369560151,1751622646561,-790.8,0.00016438,2]
[369560152,1751622646571,-459.91137399,0.00016438,2]
[369560153,1751622646581,-460.0,0.00016438,2]
[369560154,1751622646590,-460.0,0.00016438,2]
[369560155,1751622646599,-460.0,0.00016438,2]
[369560156,1751622646608,-460.0,0.00016438,2]
[369560157,1751622646628,-460.0,0.00016438,2]
[369560158,1751622646642,-460.0,0.00016438,2]
[369560159,1751622646651,-460.0,0.00016438,2]
[369560160,1751622646661,-729.18,0.00016438,2]
[369560161,1751622646671,-875.06,0.00016438,2]
[369560162,1751622646683,-1882.39,0.00016438,2]
[369560163,1751622646693,-844.5,0.00016438,2]
[369560164,1751622646704,-460.0,0.00016438,2]
[369560165,1751622646714,-1003.3,0.00016438,2]
[369560166,1751622646724,-460.0,0.00016438,2]
[369560167,1751622646734,-460.0,0.00016438,2]
[369560168,1751622646744,-1290.0,0.00016438,2]
[369560169,1751622646754,-460.0,0.00016438,2]
[369560170,1751622646764,-491.33384198,0.00016438,2]
[369560171,1751622646774,-691.51,0.00016438,2]
[369560172,1751622646783,-942.96,0.00016438,2]
[369560173,1751622646794,-460.0,0.00016438,2]
[369560174,1751622646803,-460.0,0.00016438,2]
[369560176,1751622646814,-922.09,0.00016438,2]
[369560177,1751622646824,-460.0,0.00016438,2]
[369560178,1751622646833,-309.51892845,0.00016438,2]
[369560179,1751622646844,-460.0,0.00016438,2]
[369560181,1751622646853,-460.0,0.00016438,2]
[369560182,1751622646863,-460.0,0.00016438,2]
[369560183,1751622646874,-708.51,0.00016438,2]
[369560185,1751622646883,-151.0,0.00016438,2]
[369560186,1751622646893,-460.0,0.00016438,2]
[369560188,1751622646902,-151.0,0.00016438,2]
[369560190,1751622646912,-4274.49,0.00016438,2]
[369560192,1751622646922,-212.325124,0.00016438,2]
[369560194,1751622646931,-3492.71,0.00016438,2]
[369560196,1751622646941,-878.67,0.00016438,2]
[369560198,1751622646952,-1049.41,0.00016438,2]
[369560200,1751622646962,-460.0,0.00016438,2]
[369560202,1751622646971,-151.0,0.00016438,2]
[369560204,1751622646981,-460.0,0.00016438,2]
[369560207,1751622646991,-2084.78,0.00016438,2]
[369560209,1751622647000,-460.0,0.00016438,2]
[369560211,1751622647012,-2770.79,0.00016438,2]
[369560213,1751622647022,-2445.28,0.00016438,2]
[369560215,1751622647032,-460.0,0.00016438,2]
[369560217,1751622647041,-285.76345348,0.00016438,2]
[369560219,1751622647051,-4713.31,0.00016438,2]
[369560221,1751622647061,-460.0,0.00016438,2]
[369560223,1751622647070,-790.27,0.00016438,2]
[369560225,1751622647079,-460.0,0.00016438,2]
[369560227,1751622647089,-151.38299,0.00016438,2]
[369560229,1751622647099,-460.0,0.00016438,2]
[369560231,1751622647108,-734.59,0.00016438,2]
[369560233,1751622647118,-460.0,0.00016438,2]
[369560235,1751622647128,-462.01930397,0.00016438,2]
[369560237,1751622647138,-460.0,0.00016438,2]
[369560239,1751622647147,-674.82,0.00016438,2]
[369560241,1751622647157,-476.62040545,0.00016438,2]
[369560243,1751622647167,-460.0,0.00016438,2]
[369560245,1751622647177,-460.0,0.00016438,2]
[369560247,1751622647186,-460.0,0.00016438,2]
[369560249,1751622647196,-151.0,0.00016438,2]
[369560251,1751622647206,-460.0,0.00016438,2]
[369560253,1751622647215,-406.01254318,0.00016438,2]
[369560255,1751622647225,-151.0,0.00016438,2]
[369560258,1751622647238,-460.0,0.00016438,2]
[369560260,1751622647248,-460.0,0.00016438,2]
[369560262,1751622647258,-500.0,0.00016438,2]
[369560264,1751622647268,-500.0,0.00016438,2]
[369560266,1751622647278,-500.0,0.00016438,2]
[369560268,1751622647288,-500.0,0.00016438,2]
[369560270,1751622647298,-500.0,0.00016438,2]
[369560272,1751622647307,-460.0,0.00016438,2]
[369560274,1751622647317,-717.55,0.00016438,2]
[369560276,1751622647326,-460.0,0.00016438,2]
[369560278,1751622647337,-500.0,0.00016438,2]
[369560280,1751622647347,-500.0,0.00016438,2]
[369560282,1751622647358,-500.0,0.00016438,2]
[369560284,1751622647367,-157.2341426,0.00016438,2]
[369560286,1751622647377,-460.0,0.00016438,2]
[369560288,1751622647386,-460.0,0.00016438,2]
[369560291,1751622647395,-3257.0,0.00016438,2]
[369560293,1751622647404,-460.0,0.00016438,2]
[369560295,1751622647413,-460.0,0.00016438,2]
[369560297,1751622647422,-460.0,0.00016438,2]
[369560299,1751622647431,-461.12419687,0.00016438,2]
[369560301,1751622647441,-2068.03,0.00016438,2]
[369560303,1751622647451,-460.0,0.00016438,2]
[369560305,1751622647460,-460.0,0.00016438,2]
[369560307,1751622647470,-460.0,0.00016438,2]
[369560309,1751622647479,-823.78,0.00016438,2]
[369560311,1751622647488,-460.0,0.00016438,2]
[369560313,1751622647497,-460.0,0.00016438,2]
[369560315,1751622647506,-713.63,0.00016438,2]
[369560317,1751622647517,-460.0,0.00016438,2]
[369560319,1751622647526,-1731.37,0.00016438,2]
[369560321,1751622647535,-461.85412519,0.00016438,2]
[369560323,1751622647545,-151.0,0.00016438,2]
[369560325,1751622647554,-1396.47,0.00016438,2]
[369560327,1751622647564,-500.0,0.00016438,2]
[369560345,1751622647733,-178.8012,0.00016438,2]
[369560347,1751622647743,-178.8012,0.00016438,2]
[369560350,1751622647752,-178.8012,0.00016438,2]
[369560352,1751622647762,-178.8012,0.00016438,2]
[369560354,1751622647772,-178.8012,0.00016438,2]
[369560356,1751622647782,-178.8012,0.00016438,2]
[369560357,1751622647791,-178.8012,0.00016438,2]
[369560360,1751622647801,-178.8012,0.00016438,2]
[369560362,1751622647811,-151.0,0.00016438,2]
[369560364,1751622647821,-152.770871,0.00016438,2]
[369560366,1751622647830,-444.0,0.00016457,2]
[369560368,1751622647840,-161.601384,0.00016457,2]
[369560370,1751622647849,-161.601384,0.00016457,2]
[369560372,1751622647859,-495.0,0.0001647,2]
[369560374,1751622647868,-366.5311405,0.000165,2]
[369560376,1751622647878,-641.0,0.000165,2]
[369560378,1751622647886,-290.60562185,0.00016544,2]
[369560380,1751622647897,-1079.84527865,0.00016569,2]
[369560382,1751622647905,-500.0,0.00016573,2]
[369560384,1751622647915,-168.0,0.00016574,2]
[369560386,1751622647924,-1004.886178,0.00016574,2]
[369560388,1751622647933,-1004.886178,0.00016574,2]
[369560390,1751622647942,-420.0,0.00016636,2]
[369560392,1751622647952,-500.0,0.00016711,2]
[369560394,1751622647963,-500.0,0.00016711,2]
[369560396,1751622647973,-500.0,0.00016711,2]
[369560398,1751622647982,-623.24349879,0.00016711,2]
[369560400,1751622647991,-151.0,0.00016712,2]
[369560402,1751622647999,-151.0,0.00016712,2]
[369560404,1751622648009,-151.0,0.00016712,2]
[369560406,1751622648018,-151.0,0.00016712,2]
[369560408,1751622648028,-206.840116,0.00016712,2]
[369560410,1751622648037,-178.8012,0.00016712,2]
[369560412,1751622648046,-178.8012,0.00016712,2]
[369560414,1751622648056,-178.8012,0.00016712,2]
[369560416,1751622648065,-178.8012,0.00016712,2]
[369560418,1751622648074,-178.8012,0.00016712,2]
[369560420,1751622648085,-178.8012,0.00016712,2]
[369560422,1751622648095,-178.8012,0.00016712,2]
[369560424,1751622648104,-178.8012,0.00016712,2]
[369560426,1751622648114,-178.8012,0.00016712,2]
[369560428,1751622648123,-178.8012,0.00016712,2]
[369560430,1751622648133,-178.8012,0.00016712,2]
[369560432,1751622648142,-178.8012,0.00016712,2]
[369560434,1751622648151,-244.456419,0.00016712,2]
[369560436,1751622648161,-460.0,0.00016712,2]
[369560438,1751622648171,-436.47390211,0.00016712,2]
[369560440,1751622648180,-460.0,0.00016712,2]
[369560442,1751622648190,-151.0,0.00016712,2]
[369560444,1751622648199,-460.0,0.00016712,2]
[369560446,1751622648209,-460.0,0.00016712,2]
[369560448,1751622648219,-460.0,0.00016712,2]
[369560450,1751622648228,-378.57872942,0.00016712,2]
[369560452,1751622648240,-470.83385975,0.00016712,2]
[369560454,1751622648249,-529.01966624,0.00016712,2]
[369560457,1751622648259,-460.0,0.00016712,2]
[369560459,1751622648269,-460.0,0.00016712,2]
[369560460,1751622648279,-460.0,0.00016712,2]
[369560462,1751622648289,-460.0,0.00016712,2]
[369560465,1751622648298,-460.0,0.00016712,2]
[369560466,1751622648308,-151.0,0.00016712,2]
[369560468,1751622648317,-151.0,0.00016712,2]
[369560470,1751622648327,-151.0,0.00016712,2]
[369560472,1751622648336,-151.0,0.00016712,2]
[369560474,1751622648346,-151.0,0.00016712,2]
[369560476,1751622648355,-460.0,0.00016712,2]
[369560478,1751622648364,-460.0,0.00016712,2]
[369560480,1751622648374,-460.0,0.00016712,2]
[369560482,1751622648383,-460.0,0.00016712,2]
[369560484,1751622648393,-460.0,0.00016712,2]
[369560486,1751622648402,-460.0,0.00016712,2]
[369560489,1751622648413,-460.0,0.00016712,2]
[369560491,1751622648423,-460.0,0.00016712,2]
[369560493,1751622648433,-460.0,0.00016712,2]
[369560495,1751622648443,-460.0,0.00016712,2]
[369560497,1751622648453,-460.0,0.00016712,2]
[369560499,1751622648462,-460.0,0.00016712,2]
[369560501,1751622648472,-551.01435286,0.00016712,2]
[369560503,1751622648481,-460.0,0.00016712,2]
[369560505,1751622648491,-460.0,0.00016712,2]
[369560507,1751622648502,-553.47,0.00016712,2]
[369560509,1751622648511,-460.0,0.00016712,2]
[369560511,1751622648520,-460.0,0.00016712,2]
[369560513,1751622648531,-460.0,0.00016712,2]
[369560515,1751622648540,-460.0,0.00016712,2]
[369560517,1751622648549,-460.0,0.00016712,2]
[369560519,1751622648559,-460.0,0.00016712,2]
[369560521,1751622648568,-460.0,0.00016712,2]
[369560523,1751622648578,-460.0,0.00016712,2]
[369560525,1751622648587,-590.65606824,0.00016712,2]
[369560527,1751622648597,-460.0,0.00016712,2]
[369560529,1751622648606,-260.16920844,0.00016712,2]
[369560531,1751622648615,-460.0,0.00016712,2]
[369560533,1751622648624,-460.0,0.00016712,2]
[369560535,1751622648634,-460.0,0.00016712,2]
[369560537,1751622648645,-165.886043,0.00016712,2]
[369560539,1751622648656,-165.886043,0.00016712,2]
[369560540,1751622648666,-165.886043,0.00016712,2]
[369560543,1751622648676,-165.886043,0.00016712,2]
[369560545,1751622648686,-460.0,0.00016712,2]
[369560547,1751622648696,-165.886043,0.00016712,2]
[369560549,1751622648705,-165.886043,0.00016712,2]
[369560551,1751622648714,-165.886043,0.00016712,2]
[369560552,1751622648725,-165.886039,0.00016712,2]
[369560554,1751622648735,-460.0,0.00016712,2]
[369560557,1751622648744,-460.0,0.00016712,2]
[369560559,1751622648754,-460.0,0.00016712,2]
[369560561,1751622648764,-460.0,0.00016712,2]
[369560563,1751622648773,-460.0,0.00016712,2]
[369560565,1751622648783,-460.0,0.00016712,2]
[369560567,1751622648793,-460.0,0.00016712,2]
[369560569,1751622648803,-460.0,0.00016712,2]
[369560571,1751622648813,-353.03213584,0.00016712,2]
[369560573,1751622648823,-460.0,0.00016712,2]
[369560575,1751622648832,-460.0,0.00016712,2]
[369560577,1751622648842,-460.0,0.00016712,2]
[369560579,1751622648852,-151.0,0.00016712,2]
[369560581,1751622648862,-151.0,0.00016712,2]
[369560583,1751622648872,-151.0,0.00016712,2]
[369560585,1751622648881,-763.16,0.00016712,2]
[369560587,1751622648891,-460.0,0.00016712,2]
[369560589,1751622648901,-460.0,0.00016712,2]
[369560591,1751622648911,-424.98897562,0.00016712,2]
[369560593,1751622648921,-460.0,0.00016712,2]
[369560595,1751622648930,-460.0,0.00016712,2]
[369560597,1751622648940,-197.76011633,0.00016712,2]
[369560599,1751622648949,-460.0,0.00016712,2]
[369560601,1751622648959,-460.0,0.00016712,2]
[369560603,1751622648969,-460.0,0.00016712,2]
[369560605,1751622648979,-460.0,0.00016712,2]
[369560607,1751622648989,-500.0,0.00016712,2]
[369560609,1751622648999,-460.0,0.00016712,2]
[369560611,1751622649009,-532.14,0.00016712,2]
[369560612,1751622649018,-460.0,0.00016712,2]
[369560614,1751622649028,-460.0,0.00016712,2]
[369560616,1751622649039,-460.0,0.00016712,2]
[369560618,1751622649048,-460.0,0.00016712,2]
[369560621,1751622649058,-460.0,0.00016712,2]
[369560622,1751622649068,-460.0,0.00016712,2]
[369560625,1751622649081,-822.29,0.00016712,2]
[369560627,1751622649091,-460.0,0.00016712,2]
[369560629,1751622649101,-834.14,0.00016712,2]
[369560631,1751622649111,-151.0,0.00016712,2]
[369560633,1751622649120,-151.0,0.00016712,2]
[369560635,1751622649129,-255.586824,0.00016712,2]
[369560637,1751622649139,-460.0,0.00016712,2]
[369560639,1751622649148,-464.65583424,0.00016712,2]
[369560641,1751622649158,-460.0,0.00016712,2]
[369560643,1751622649167,-460.0,0.00016712,2]
[369560645,1751622649177,-460.0,0.00016712,2]
[369560647,1751622649187,-460.0,0.00016712,2]
[369560649,1751622649197,-460.0,0.00016712,2]
[369560651,1751622649206,-460.0,0.00016712,2]
[369560653,1751622649215,-460.0,0.00016712,2]
[369560655,1751622649225,-460.0,0.00016712,2]
[369560657,1751622649234,-460.0,0.00016712,2]
[369560659,1751622649244,-460.0,0.00016712,2]
[369560661,1751622649253,-1004.886178,0.00016712,2]
[369560663,1751622649263,-1004.886178,0.00016712,2]
[369560664,1751622649272,-1004.886178,0.00016712,2]
[369560666,1751622649281,-1004.886178,0.00016712,2]
[369560668,1751622649291,-1004.886178,0.00016712,2]
[369560670,1751622649300,-1004.886178,0.00016712,2]
[369560672,1751622649309,-1004.886178,0.00016712,2]
[369560674,1751622649319,-1004.886181,0.00016712,2]
[369560676,1751622649329,-460.0,0.00016712,2]
[369560679,1751622649339,-606.08501309,0.00016712,2]
[369560680,1751622649348,-460.0,0.00016712,2]
[369560682,1751622649358,-460.0,0.00016712,2]
[369560684,1751622649367,-312.37,0.00016712,2]
[369560686,1751622649376,-460.0,0.00016712,2]
[369560688,1751622649385,-460.0,0.00016712,2]
[369560690,1751622649395,-460.0,0.00016712,2]
[369560692,1751622649404,-986.97,0.00016712,2]
[369560694,1751622649414,-460.0,0.00016712,2]
[369560696,1751622649423,-460.0,0.00016712,2]
[369560698,1751622649432,-460.0,0.00016712,2]
[369560700,1751622649442,-460.0,0.00016712,2]
[369560702,1751622649451,-460.0,0.00016712,2]
[369560704,1751622649460,-462.37,0.00016712,2]
[369560706,1751622649471,-155.41460308,0.00016712,2]
[369560708,1751622649481,-185.3024153,0.00016712,2]
[369560710,1751622649490,-672.42,0.00016712,2]
[369560712,1751622649499,-1030.62,0.00016712,2]
[369560714,1751622649508,-460.0,0.00016712,2]
[369560716,1751622649518,-1162.38,0.00016712,2]
[369560718,1751622649527,-460.0,0.00016712,2]
[369560720,1751622649538,-460.0,0.00016712,2]
[369560722,1751622649547,-460.0,0.00016712,2]
[369560724,1751622649556,-460.0,0.00016712,2]
[369560726,1751622649565,-460.0,0.00016712,2]
[369560728,1751622649575,-460.0,0.00016712,2]
[369560730,1751622649584,-460.0,0.00016712,2]
[369560732,1751622649594,-460.0,0.00016712,2]
[369560734,1751622649604,-460.0,0.00016712,2]
[369560736,1751622649613,-460.0,0.00016712,2]
[369560738,1751622649623,-460.0,0.00016712,2]
[369560740,1751622649635,-460.0,0.00016712,2]
[369560742,1751622649646,-506.52519244,0.00016712,2]
[369560744,1751622649656,-1036.43,0.00016712,2]
[369560746,1751622649666,-5342.47,0.00016712,2]
[369560748,1751622649675,-822.14,0.00016712,2]
[369560750,1751622649684,-729.28,0.00016712,2]
[369560752,1751622649694,-241.07905106,0.00016712,2]
[369560754,1751622649704,-460.0,0.00016712,2]
[369560756,1751622649713,-460.0,0.00016712,2]
[369560758,1751622649723,-460.0,0.00016712,2]
[369560760,1751622649733,-561.10817735,0.00016712,2]
[369560762,1751622649743,-1820.55,0.00016712,2]
[369560764,1751622649752,-1594.57,0.00016712,2]
[369560766,1751622649761,-460.0,0.00016712,2]
[369560768,1751622649770,-460.0,0.00016712,2]
[369560770,1751622649779,-1664.52,0.00016712,2]
[369560772,1751622649788,-460.0,0.00016712,2]
[369560774,1751622649798,-200.0,0.00016712,2]
[369560776,1751622649807,-460.0,0.00016712,2]
[369560778,1751622649816,-1384.19,0.00016712,2]
[369560780,1751622649826,-460.0,0.00016712,2]
[369560782,1751622649838,-460.0,0.00016712,2]
[369560784,1751622649847,-460.0,0.00016712,2]
[369560786,1751622649857,-2116.5,0.00016712,2]
[369560788,1751622649866,-431.55251263,0.00016712,2]
[369560807,1751622650029,-3201.94748737,0.00016712,2]
[369560809,1751622650038,-460.0,0.00016712,2]
[369560811,1751622650047,-460.0,0.00016712,2]
[369560813,1751622650056,-2625.22,0.00016712,2]
[369560815,1751622650182,-1234.04,0.00016712,2]
[369560816,1751622650192,-511.32,0.00016712,2]
[369560817,1751622650202,-4684.85,0.00016712,2]
[369560818,1751622650211,-460.0,0.00016712,2]
[369560819,1751622650221,-992.43,0.00016712,2]
[369560820,1751622650231,-460.0,0.00016712,2]
[369560821,1751622650240,-595.19958667,0.00016712,2]
[369560822,1751622650250,-1182.12,0.00016712,2]
[369560823,1751622650259,-790.8,0.00016712,2]
[369560824,1751622650269,-979.7,0.00016712,2]
[369560825,1751622650279,-460.0,0.00016712,2]
[369560826,1751622650288,-584.59,0.00016712,2]
[369560828,1751622650298,-460.0,0.00016712,2]
[369560830,1751622650308,-460.0,0.00016712,2]
[369560832,1751622650316,-460.0,0.00016712,2]
[369560834,1751622650329,-460.0,0.00016712,2]